{"text_format":"1","workbook":"xlsx","n_sheets":4,"sheets":["Formulaire","Transfert","données","CANTONS 1"],"not_rendered":{"charts":0,"images":1,"macros":1,"external_links":0,"defined_names":61,"comments":0,"pivot_tables":0},"unopened":[],"bounds":{"document_bytes":16777216,"sheet_cells":100000,"rows_first":2000,"rows_last":500,"rows_between":2000,"halvings":0,"cell_chars":16384,"cell_head_chars":4096},"cells_cut":0,"cells_raw":0,"read":"whole","date_system":"1900"}

{"sheet":"Formulaire","index":0,"n_rows":34,"n_cols":13,"rows_kept":34,"cut":false,"hidden":false,"merged":[[4,1,4,2],[4,6,4,10],[5,6,5,10],[5,1,5,2]]}
[null,null,null,null,null,null,null,null,null,null,null,null,"mot de passe: toto"]
[null,"Fiche de recensement du petit patrimoine bâti"]
[null,"Le remplissage des champs de la zone grisée est souhaité mais n'est pas obligatoire"]
[]
[]
[]
["NATURE DE L'EDIFICE :",null,null,null,null,null,"GEOLOCALISATION (GPS, Géoportail)"]
[]
[null,null,null,null,null,null,"Longitude :"]
["CANTON :",null,null,null,null,null,"Latitude :"]
[null,null,null,null,null,null,"Altitude :"]
[null,null,{"$f":"IFERROR(LOOKUP(C11,canton,code_canton),\"\")","v":""}]
["COMMUNE :"]
[null,null,null,null,null,null,"REFERENCES CADASTRALES (Cadastre.gouv)"]
[]
["CODE INSEE de la commune :",null,null,null,null,null,"Feuille n° :"]
[null,null,{"$f":"IFERROR(LOOKUP(C14,commune,code_commune),\"\")","v":""},null,null,null,"Parcelle n° :"]
[]
["LIEU-DIT ou ADRESSE :",null,null,null,null,null,"STATUT DU SITE (mettre un  X dans la case adaptée)"]
[]
[null,null,null,null,null,null,null,null,"Public"]
["ETAT DE CONSERVATION (mettre  X dans la case adaptée)",null,null,null,null,null,null,null,"Privé"]
[null,null,null,null,null,null,"Propriétaire :"]
[null,null,"Bon"]
[null,null,"Moyen",null,null,null,"PROTECTION (mettre X dans la case adaptée)"]
[null,null,"Mauvais"]
[null,null,"Inégal",null,null,null,null,null,"Classé"]
[null,null,"En cours de restauration",null,null,null,null,null,"Inscrit"]
[null,null,null,null,null,null,null,null,"En périmètre protégé"]
["ACCES (ex : bord de route, en plein bois, sans accès, etc.)",null,null,null,null,null,null,null,"Aucune"]
[]
[]
["DESCRIPTION SOMMAIRE (3 lignes maximum)",null,null,null,null,null,"AUTEUR :"]
[null,null,null,null,null,null,"Date (jj/mm/aaaa) :"]

{"sheet":"Transfert","index":1,"n_rows":5,"n_cols":15,"rows_kept":5,"cut":false,"hidden":false,"merged":[]}
[]
[]
["Nature","Canton","Commune","INSEE","Lieu-dit","Etat","Longitude","Latitude","Altitude","Section","Parcelle","Site","Protection","Auteur","Date"]
[]
[null,"",null,"",null,""," E"," N","m",null,null,"",""]

{"sheet":"données","index":2,"n_rows":558,"n_cols":7,"rows_kept":558,"cut":false,"hidden":false,"merged":[]}
["canton","code canton","cantonetcode","commune","code commune","Canton de la commune","nature"]
["Beaumont-du-Périgord",2401,{"$f":"CONCATENATE(A2,  -B2)","v":"Beaumont-du-Périgord-2401"},"Abjat-sur-Bandiat ",24001,{"$f":"VLOOKUP(TRIM(D2),communes,2,FALSE)","v":24001},"Abreuvoir"]
["Belvès",2402,{"$f":"CONCATENATE(A3,  -B3)","v":"Belvès-2402"},"Agonac",24002,24002,"Aqueduc"]
["Bergerac 1er Canton",2403,"Bergerac 1er Canton-2403","Ajat ",24004,24004,"Bassin"]
["Bergerac 2e Canton",2448,"Bergerac 2e Canton-2448","Allas-les-Mines ",24006,24006,"Bâtiment d'élevage"]
["Brantôme",2404,"Brantôme-2404","Allemans ",24007,24007,"Borne"]
["Bussière-Badil",2406,"Bussière-Badil-2406","Alles-sur-Dordogne ",24005,24005,"Cabane maçonnée"]
["Carlux",2408,"Carlux-2408","Angoisse ",24008,24008,"Cabane en pierre sèche"]
["Champagnac-de-Belair",2409,"Champagnac-de-Belair-2409","Anlhiac ",24009,24009,"Cadran solaire"]
["Domme",2410,"Domme-2410","Annesse-et-Beaulieu",24010,24010,"Cale de port"]
["Excideuil",2411,"Excideuil-2411","Antonne-et-Trigonant",24011,24011,"Chanvrière"]
["Eymet",2412,"Eymet-2412","Archignac ",24012,24012,"Chapelle"]
["Hautefort",2413,"Hautefort-2413","Atur ",24013,24013,"Chaudière"]
["Issigeac",2414,"Issigeac-2414","Aubas ",24014,24014,"Chemin"]
["Jumilhac-le-Grand",2415,"Jumilhac-le-Grand-2415","Audrix ",24015,24015,"Citerne"]
["La Force",2416,"La Force-2416","Augignac ",24016,24016,"Clapier"]
["Lalinde",2417,"Lalinde-2417","Auriac-du-Périgord ",24018,24018,"Cluzeau"]
["Lanouaille",2418,"Lanouaille-2418","Azerat ",24019,24019,"Croix"]
["Le Bugue",2405,"Le Bugue-2405","Badefols-d'Ans ",24021,24021,"Cuvier"]
["Le Buisson-de-Cadouin",2407,"Le Buisson-de-Cadouin-2407","Badefols-sur-Dordogne ",24022,24022,"Echoppe"]
["Mareuil",2419,"Mareuil-2419","Baneuil ",24023,24023,"Ecluse"]
["Monpazier",2420,"Monpazier-2420","Bardou ",24024,24024,"Epi de faîtage"]
["Montagrier",2421,"Montagrier-2421","Bars ",24025,24025,"Escalier"]
["Montignac",2422,"Montignac-2422","Bassillac ",24026,24026,"Fontaine"]
["Montpon-Ménestérol",2423,"Montpon-Ménestérol-2423","Bayac ",24027,24027,"Fontaine-lavoir"]
["Mussidan",2424,"Mussidan-2424","Beaumont-du-Périgord ",24028,24028,"Fosse ovoïde"]
["Neuvic",2425,"Neuvic-2425","Beaupouyet ",24029,24029,"Four à chaux"]
["Nontron",2426,"Nontron-2426","Beauregard-de-Terrasson ",24030,24030,"Four à pain"]
["Périgueux-Centre",2427,"Périgueux-Centre-2427","Beauregard-et-Bassac ",24031,24031,"Gare"]
["Périgueux-Nord-Est",2449,"Périgueux-Nord-Est-2449","Beauronne ",24032,24032,"Halle"]
["Périgueux-Ouest",2450,{"$f":"CONCATENATE(A31,  -B31)","v":"Périgueux-Ouest-2450"},"Beaussac ",24033,24033,"Kiosque"]
["Ribérac",2428,"Ribérac-2428","Beleymas ",24034,24034,"Lanterne des morts"]
["Saint-Astier",2430,"Saint-Astier-2430","Belvès ",24035,24035,"Latrine"]
["Saint-Aulaye",2431,"Saint-Aulaye-2431","Berbiguières ",24036,24036,"Lavoir"]
["Saint-Cyprien",2432,"Saint-Cyprien-2432","Bergerac ",24037,24037,"Linteau"]
["Sainte-Alvère",2429,"Sainte-Alvère-2429","Bertric-Burée ",24038,24038,"Logette à répit"]
["Saint-Pardoux-la-Rivière",2433,"Saint-Pardoux-la-Rivière-2433","Besse ",24039,24039,"Maison de carrier"]
["Saint-Pierre-de-Chignac",2434,"Saint-Pierre-de-Chignac-2434","Beynac-et-Cazenac ",24040,24040,"Mare"]
["Salignac-Eyvigues",2435,"Salignac-Eyvigues-2435","Bézenac ",24041,24041,"Mégalithe"]
["Sarlat-la-Canéda",2436,"Sarlat-la-Canéda-2436","Biras ",24042,24042,"Meule"]
["Savignac-les-Églises",2437,"Savignac-les-Églises-2437","Biron ",24043,24043,"Moine"]
["Sigoulès",2438,"Sigoulès-2438","Blis-et-Born ",24044,24044,"Moulin"]
["Terrasson-Lavilledieu",2439,"Terrasson-Lavilledieu-2439","Boisse ",24045,24045,"Octroi"]
["Thenon",2440,"Thenon-2440","Boisseuilh ",24046,24046,"Oratoire"]
["Thiviers",2441,"Thiviers-2441","Bonneville-et-St-Avit-de-Fumadières ",24048,24048,"Piéta"]
["Vélines",2442,"Vélines-2442","Borrèze ",24050,24050,"Pigeonnier"]
["Vergt",2443,"Vergt-2443","Bosset ",24051,24051,"Poids public"]
["Verteillac",2444,"Verteillac-2444","Bouillac ",24052,24052,"Pontet"]
["Villamblard",2445,"Villamblard-2445","Boulazac ",24053,24053,"Porche"]
["Villefranche-de-Lonchat",2446,"Villefranche-de-Lonchat-2446","Bouniagues ",24054,24054,"Porcherie"]
["Villefranche-du-Périgord",2447,"Villefranche-du-Périgord-2447","Bourdeilles ",24055,24055,"Portail"]
[null,null,null,"Bourg-des-Maisons ",24057,24057,"Porte"]
[null,null,null,"Bourg-du-Bost ",24058,24058,"Poulailler"]
[null,null,null,"Bourgnac ",24059,24059,"Pressoir"]
[null,null,null,"Bourniquel ",24060,24060,"Puits"]
[null,null,null,"Bourrou ",24061,24061,"Réservoir"]
[null,null,null,"Bouteilles-Saint-Sébastien ",24062,24062,"Route"]
[null,null,null,"Bouzic ",24063,24063,"Routoir"]
[null,null,null,"Brantôme ",24064,24064,"Sarcophage"]
[null,null,null,"Breuilh ",24065,24065,"Séchoir à fruits"]
[null,null,null,"Brouchaud ",24066,24066,"Sépulture"]
[null,null,null,"Bussac ",24069,24069,"Statue"]
[null,null,null,"Busserolles ",24070,24070,"Stèle"]
[null,null,null,"Bussière-Badil ",24071,24071,"Tombe"]
[null,null,null,"Calès ",24073,24073,"Tour"]
[null,null,null,"Calviac-en-Périgord ",24074,{"$f":"VLOOKUP(TRIM(D66),communes,2,FALSE)","v":24074},"Travail"]
[null,null,null,"Campagnac-lès-Quercy ",24075,24075,"Vivier"]
[null,null,null,"Campagne ",24076,24076,"Autre"]
[null,null,null,"Campsegret ",24077,24077]
[null,null,null,"Cantillac ",24079,24079]
[null,null,null,"Capdrot ",24080,24080]
[null,null,null,"Carlux ",24081,24081]
[null,null,null,"Carsac-Aillac ",24082,24082]
[null,null,null,"Carsac-de-Gurson ",24083,24083]
[null,null,null,"Carves ",24084,24084]
[null,null,null,"Castelnaud-la-Chapelle ",24086,24086]
[null,null,null,"Castels ",24087,24087]
[null,null,null,"Cause-de-Clérans ",24088,24088]
[null,null,null,"Cazoulès ",24089,24089]
[null,null,null,"Celles ",24090,24090]
[null,null,null,"Cénac-et-Saint-Julien ",24091,24091]
[null,null,null,"Cendrieux ",24092,24092]
[null,null,null,"Cercles ",24093,24090]
[null,null,null,"Chalagnac ",24094,24094]
[null,null,null,"Chalais ",24095,24095]
[null,null,null,"Champagnac-de-Belair ",24096,24096]
[null,null,null,"Champagne-et-Fontaine ",24097,24097]
[null,null,null,"Champcevinel",24098,24098]
[null,null,null,"Champeaux-et-la-Chapelle-Pommier ",24099,24099]
[null,null,null,"Champniers-et-Reilhac ",24100,24100]
[null,null,null,"Champs-Romain ",24101,24101]
[null,null,null,"Chancelade",24102,24102]
[null,null,null,"Chantérac ",24104,24104]
[null,null,null,"Chapdeuil ",24105,24105]
[null,null,null,"Chassaignes ",24114,24114]
[null,null,null,"Château-l'Évêque",24115,24115]
[null,null,null,"Châtres ",24116,24116]
[null,null,null,"Chavagnac ",24117,24117]
[null,null,null,"Chenaud ",24118,24118]
[null,null,null,"Cherval ",24119,24119]
[null,null,null,"Cherveix-Cubas ",24120,24120]
[null,null,null,"Chourgnac ",24121,24121]
[null,null,null,"Cladech ",24122,24122]
[null,null,null,"Clermont-de-Beauregard ",24123,24123]
[null,null,null,"Clermont-d'Excideuil ",24124,24124]
[null,null,null,"Colombier ",24126,24126]
[null,null,null,"Coly ",24127,24127]
[null,null,null,"Comberanche-et-Épeluche ",24128,24128]
[null,null,null,"Condat-sur-Trincou ",24129,24129]
[null,null,null,"Condat-sur-Vézère ",24130,24130]
[null,null,null,"Conne-de-Labarde ",24132,24132]
[null,null,null,"Connezac ",24131,24131]
[null,null,null,"Corgnac-sur-l'Isle ",24134,24134]
[null,null,null,"Cornille",24135,24135]
[null,null,null,"Coubjours ",24136,24136]
[null,null,null,"Coulaures ",24137,24137]
[null,null,null,"Coulounieix-Chamiers",24138,24138]
[null,null,null,"Coursac",24139,24139]
[null,null,null,"Cours-de-Pile ",24140,24140]
[null,null,null,"Coutures ",24141,24141]
[null,null,null,"Coux-et-Bigaroque ",24142,24142]
[null,null,null,"Couze-et-Saint-Front ",24143,24143]
[null,null,null,"Creyssac ",24144,24144]
[null,null,null,"Creysse ",24145,24145]
[null,null,null,"Creyssensac-et-Pissot ",24146,24146]
[null,null,null,"Cubjac ",24147,24147]
[null,null,null,"Cunèges ",24148,24148]
[null,null,null,"Daglan ",24150,24150]
[null,null,null,"Doissat ",24151,24151]
[null,null,null,"Domme ",24152,{"$f":"VLOOKUP(TRIM(D130),communes,2,FALSE)","v":24152}]
[null,null,null,"Douchapt ",24154,24154]
[null,null,null,"Douville ",24155,24155]
[null,null,null,"Douzillac ",24157,24157]
[null,null,null,"Dussac ",24158,24158]
[null,null,null,"Échourgnac ",24159,24159]
[null,null,null,"Église-Neuve-de-Vergt ",24160,24160]
[null,null,null,"Église-Neuve-d'Issac ",24161,24161]
[null,null,null,"Escoire",24162,24162]
[null,null,null,"Étouars ",24163,24163]
[null,null,null,"Excideuil ",24164,24164]
[null,null,null,"Eygurande-et-Gardedeuil ",24165,24165]
[null,null,null,"Eyliac ",24166,24166]
[null,null,null,"Eymet ",24167,24167]
[null,null,null,"Eyvirat ",24170,24170]
[null,null,null,"Eyzerac ",24171,24171]
[null,null,null,"Fanlac ",24174,24174]
[null,null,null,"Faurilles ",24176,24176]
[null,null,null,"Faux ",24177,24177]
[null,null,null,"Festalemps ",24178,24178]
[null,null,null,"Firbeix ",24180,24180]
[null,null,null,"Flaugeac ",24181,24181]
[null,null,null,"Fleurac ",24183,24183]
[null,null,null,"Florimont-Gaumier ",24184,24184]
[null,null,null,"Fonroque ",24186,24186]
[null,null,null,"Fossemagne ",24188,24188]
[null,null,null,"Fougueyrolles ",24189,24189]
[null,null,null,"Fouleix ",24190,24190]
[null,null,null,"Fraisse ",24191,24191]
[null,null,null,"Gabillou ",24192,24192]
[null,null,null,"Gageac-et-Rouillac ",24193,24193]
[null,null,null,"Gardonne ",24194,24194]
[null,null,null,"Gaugeac ",24195,24195]
[null,null,null,"Génis ",24196,24196]
[null,null,null,"Ginestet ",24197,24197]
[null,null,null,"Gout-Rossignol ",24199,24199]
[null,null,null,"Grand-Brassac ",24200,24200]
[null,null,null,"Granges-d'Ans ",24202,24202]
[null,null,null,"Grèzes ",24204,24204]
[null,null,null,"Grignols ",24205,24205]
[null,null,null,"Grives ",24206,24206]
[null,null,null,"Groléjac ",24207,24207]
[null,null,null,"Grun-Bordas ",24208,24208]
[null,null,null,"Hautefaye ",24209,24209]
[null,null,null,"Hautefort ",24210,24210]
[null,null,null,"Issac ",24211,24211]
[null,null,null,"Issigeac ",24212,24212]
[null,null,null,"Jaure ",24213,24213]
[null,null,null,"Javerlhac-et-la-Chapelle-Saint-Robert ",24214,24214]
[null,null,null,"Jayac ",24215,24215]
[null,null,null,"Journiac ",24217,24217]
[null,null,null,"Jumilhac-le-Grand ",24218,24218]
[null,null,null,"La Bachellerie ",24020,24020]
[null,null,null,"La Boissière-d'Ans ",24047,24047]
[null,null,null,"La Cassagne ",24085,24085]
[null,null,null,"La Chapelle-Aubareil ",24106,24106]
[null,null,null,"La Chapelle-Faucher ",24107,24107]
[null,null,null,"La Chapelle-Gonaguet",24108,24108]
[null,null,null,"La Chapelle-Grésignac ",24109,24109]
[null,null,null,"La Chapelle-Montabourlet ",24110,24110]
[null,null,null,"La Chapelle-Montmoreau ",24111,24111]
[null,null,null,"La Chapelle-Saint-Jean ",24113,24113]
[null,null,null,"La Coquille ",24133,24133]
[null,null,null,"La Dornac ",24153,24153]
[null,null,null,"La Douze ",24156,{"$f":"VLOOKUP(TRIM(D194),communes,2,FALSE)","v":24156}]
[null,null,null,"La Feuillade ",24179,24179]
[null,null,null,"La Force ",24222,24222]
[null,null,null,"La Gonterie-Boulouneix ",24198,24198]
[null,null,null,"La Jemaye ",24216,24216]
[null,null,null,"La Rochebeaucourt-et-Argentine ",24353,24353]
[null,null,null,"La Roche-Chalais ",24354,24354]
[null,null,null,"La Roque-Gageac ",24355,24355]
[null,null,null,"La Tour-Blanche ",24554,24554]
[null,null,null,"Labouquerie ",24219,24219]
[null,null,null,"Lacropte ",24220,24220]
[null,null,null,"Lalinde ",24223,24223]
[null,null,null,"Lamonzie-Montastruc ",24224,24224]
[null,null,null,"Lamonzie-Saint-Martin ",24225,24225]
[null,null,null,"Lamothe-Montravel ",24226,24226]
[null,null,null,"Lanouaille ",24227,24227]
[null,null,null,"Lanquais ",24228,24228]
[null,null,null,"Larzac ",24230,24230]
[null,null,null,"Lavalade ",24231,24231]
[null,null,null,"Lavaur ",24232,24232]
[null,null,null,"Laveyssière ",24233,24233]
[null,null,null,"Le Bourdeix ",24056,24056]
[null,null,null,"Le Bugue ",24067,24067]
[null,null,null,"Le Buisson-de-Cadouin ",24068,24068]
[null,null,null,"Le Change ",24103,24103]
[null,null,null,"Le Fleix ",24182,24182]
[null,null,null,"Le Lardin-Saint-Lazare ",24229,24229]
[null,null,null,"Le Pizou ",24329,24329]
[null,null,null,"Léguillac-de-Cercles ",24235,24235]
[null,null,null,"Léguillac-de-l'Auche ",24236,24236]
[null,null,null,"Lembras ",24237,24237]
[null,null,null,"Lempzours ",24238,24238]
[null,null,null,"Les Eyzies-de-Tayac-Sireuil ",24172,24172]
[null,null,null,"Les Farges ",24175,24175]
[null,null,null,"Les Graulges ",24203,24203]
[null,null,null,"Les Lèches ",24234,{"$error":"#N/A"}]
[null,null,null,"Ligueux ",24239,24239]
[null,null,null,"Limeuil ",24240,24240]
[null,null,null,"Limeyrat ",24241,24241]
[null,null,null,"Liorac-sur-Louyre ",24242,24242]
[null,null,null,"Lisle ",24243,24243]
[null,null,null,"Lolme ",24244,24244]
[null,null,null,"Loubejac ",24245,24245]
[null,null,null,"Lunas ",24246,24246]
[null,null,null,"Lusignac ",24247,24247]
[null,null,null,"Lussas-et-Nontronneau ",24248,24248]
[null,null,null,"Manaurie ",24249,24249]
[null,null,null,"Manzac-sur-Vern ",24251,24251]
[null,null,null,"Marcillac-Saint-Quentin ",24252,24252]
[null,null,null,"Mareuil ",24253,24253]
[null,null,null,"Marnac ",24254,24254]
[null,null,null,"Marquay ",24255,24255]
[null,null,null,"Marsac-sur-l'Isle",24256,24256]
[null,null,null,"Marsalès ",24257,24257]
[null,null,null,"Marsaneix ",24258,24258]
[null,null,null,"Maurens ",24259,24259]
[null,null,null,"Mauzac-et-Grand-Castang ",24260,24260]
[null,null,null,"Mauzens-et-Miremont ",24261,24261]
[null,null,null,"Mayac ",24262,24262]
[null,null,null,"Mazeyrolles ",24263,24263]
[null,null,null,"Ménesplet ",24264,24264]
[null,null,null,"Mensignac",24266,24266]
[null,null,null,"Mescoules ",24267,24267]
[null,null,null,"Meyrals ",24268,24268]
[null,null,null,"Mialet ",24269,{"$f":"VLOOKUP(TRIM(D258),communes,2,FALSE)","v":24269}]
[null,null,null,"Milhac-d'Auberoche ",24270,24270]
[null,null,null,"Milhac-de-Nontron ",24271,24271]
[null,null,null,"Minzac ",24272,24272]
[null,null,null,"Molières ",24273,24273]
[null,null,null,"Monbazillac ",24274,24274]
[null,null,null,"Monestier ",24276,24276]
[null,null,null,"Monfaucon ",24277,24277]
[null,null,null,"Monmadalès ",24278,24278]
[null,null,null,"Monmarvès ",24279,24279]
[null,null,null,"Monpazier ",24280,24280]
[null,null,null,"Monplaisant ",24293,24293]
[null,null,null,"Monsac ",24281,24281]
[null,null,null,"Monsaguel ",24282,24282]
[null,null,null,"Monsec ",24283,24283]
[null,null,null,"Montagnac-d'Auberoche ",24284,24284]
[null,null,null,"Montagnac-la-Crempse ",24285,24285]
[null,null,null,"Montagrier ",24286,24286]
[null,null,null,"Montaut ",24287,24287]
[null,null,null,"Montazeau ",24288,24288]
[null,null,null,"Montcaret ",24289,24289]
[null,null,null,"Montferrand-du-Périgord ",24290,24290]
[null,null,null,"Montignac ",24291,24291]
[null,null,null,"Montpeyroux ",24292,24292]
[null,null,null,"Montpon-Ménestérol ",24294,24294]
[null,null,null,"Montrem ",24295,24295]
[null,null,null,"Mouleydier ",24296,24296]
[null,null,null,"Moulin-Neuf ",24297,24297]
[null,null,null,"Mouzens ",24298,24298]
[null,null,null,"Mussidan ",24299,24299]
[null,null,null,"Nabirat ",24300,24300]
[null,null,null,"Nadaillac ",24301,24301]
[null,null,null,"Nailhac ",24302,24302]
[null,null,null,"Nanteuil-Auriac-de-Bourzac ",24303,24303]
[null,null,null,"Nantheuil ",24304,24304]
[null,null,null,"Nanthiat ",24305,24305]
[null,null,null,"Nastringues ",24306,24306]
[null,null,null,"Naussannes ",24307,24307]
[null,null,null,"Négrondes ",24308,24308]
[null,null,null,"Neuvic ",24309,24309]
[null,null,null,"Nojals-et-Clotte ",24310,24310]
[null,null,null,"Nontron",24311,24311]
[null,null,null,"Notre-Dame-de-Sanilhac ",24312,24312]
[null,null,null,"Orliac ",24313,24313]
[null,null,null,"Orliaguet ",24314,24314]
[null,null,null,"Parcoul ",24316,24316]
[null,null,null,"Paulin ",24317,24317]
[null,null,null,"Paunat ",24318,24318]
[null,null,null,"Paussac-et-Saint-Vivien ",24319,24319]
[null,null,null,"Payzac ",24320,24320]
[null,null,null,"Pazayac ",24321,24321]
[null,null,null,"Périgueux",24322,24322]
[null,null,null,"Petit-Bersac ",24323,24323]
[null,null,null,"Peyrignac ",24324,24324]
[null,null,null,"Peyrillac-et-Millac ",24325,24325]
[null,null,null,"Peyzac-le-Moustier ",24326,24326]
[null,null,null,"Pezuls ",24327,24327]
[null,null,null,"Piégut-Pluviers ",24328,24328]
[null,null,null,"Plaisance ",24168,24168]
[null,null,null,"Plazac ",24330,24330]
[null,null,null,"Pomport ",24331,24331]
[null,null,null,"Ponteyraud ",24333,24333]
[null,null,null,"Pontours ",24334,24334]
[null,null,null,"Port-Sainte-Foy-et-Ponchapt ",24335,24335]
[null,null,null,"Prats-de-Carlux ",24336,{"$f":"VLOOKUP(TRIM(D322),communes,2,FALSE)","v":24336}]
[null,null,null,"Prats-du-Périgord ",24337,24337]
[null,null,null,"Pressignac-Vicq ",24338,24338]
[null,null,null,"Preyssac-d'Excideuil ",24339,24339]
[null,null,null,"Prigonrieux ",24340,24340]
[null,null,null,"Proissans ",24341,24341]
[null,null,null,"Puymangou ",24343,24343]
[null,null,null,"Puyrenier ",24344,24344]
[null,null,null,"Queyssac ",24345,24345]
[null,null,null,"Quinsac ",24346,24346]
[null,null,null,"Rampieux ",24347,24347]
[null,null,null,"Razac-de-Saussignac ",24349,24349]
[null,null,null,"Razac-d'Eymet ",24348,24348]
[null,null,null,"Razac-sur-l'Isle ",24350,24350]
[null,null,null,"Ribagnac ",24351,24351]
[null,null,null,"Ribérac ",24352,24352]
[null,null,null,"Rouffignac-de-Sigoulès ",24357,24357]
[null,null,null,"Rouffignac-Saint-Cernin-de-Reilhac ",24356,24356]
[null,null,null,"Rudeau-Ladosse ",24221,24221]
[null,null,null,"Sadillac ",24359,24359]
[null,null,null,"Sagelat ",24360,24360]
[null,null,null,"Saint-Agne ",24361,24361]
[null,null,null,"Saint-Amand-de-Belvès ",24363,24363]
[null,null,null,"Saint-Amand-de-Coly ",24364,24364]
[null,null,null,"Saint-Amand-de-Vergt ",24365,24365]
[null,null,null,"Saint-André-d'Allas ",24366,24366]
[null,null,null,"Saint-André-de-Double ",24367,24367]
[null,null,null,"Saint-Antoine-Cumond ",24368,24368]
[null,null,null,"Saint-Antoine-d'Auberoche ",24369,24369]
[null,null,null,"Saint-Antoine-de-Breuilh ",24370,24370]
[null,null,null,"Saint-Aquilin ",24371,24371]
[null,null,null,"Saint-Astier ",24372,24372]
[null,null,null,"Saint-Aubin-de-Cadelech ",24373,24373]
[null,null,null,"Saint-Aubin-de-Lanquais ",24374,24374]
[null,null,null,"Saint-Aubin-de-Nabirat ",24375,24375]
[null,null,null,"Saint-Aulaye ",24376,24376]
[null,null,null,"Saint-Avit-de-Vialard ",24377,24377]
[null,null,null,"Saint-Avit-Rivière ",24378,24378]
[null,null,null,"Saint-Avit-Sénieur ",24379,24379]
[null,null,null,"Saint-Barthélemy-de-Bellegarde ",24380,24380]
[null,null,null,"Saint-Barthélemy-de-Bussière ",24381,24381]
[null,null,null,"Saint-Capraise-de-Lalinde ",24382,24382]
[null,null,null,"Saint-Capraise-d'Eymet ",24383,24383]
[null,null,null,"Saint-Cassien ",24384,24384]
[null,null,null,"Saint-Cernin-de-Labarde ",24385,24385]
[null,null,null,"Saint-Cernin-de-l'Herm ",24386,24386]
[null,null,null,"Saint-Chamassy ",24388,24388]
[null,null,null,"Saint-Cirq ",24389,24389]
[null,null,null,"Saint-Crépin-d'Auberoche ",24390,24390]
[null,null,null,"Saint-Crépin-de-Richemont ",24391,24391]
[null,null,null,"Saint-Crépin-et-Carlucet ",24392,24392]
[null,null,null,"Saint-Cybranet ",24395,24395]
[null,null,null,"Saint-Cyprien ",24396,24396]
[null,null,null,"Saint-Cyr-les-Champagnes ",24397,24397]
[null,null,null,"Sainte-Alvère ",24362,24362]
[null,null,null,"Sainte-Croix ",24393,{"$error":"#N/A"}]
[null,null,null,"Sainte-Croix-de-Mareuil ",24394,24394]
[null,null,null,"Sainte-Eulalie-d'Ans ",24401,24401]
[null,null,null,"Sainte-Eulalie-d'Eymet ",24402,24402]
[null,null,null,"Sainte-Foy-de-Belvès ",24406,24406]
[null,null,null,"Sainte-Foy-de-Longas ",24407,24407]
[null,null,null,"Sainte-Innocence ",24423,24423]
[null,null,null,"Sainte-Marie-de-Chignac ",24447,24447]
[null,null,null,"Sainte-Mondane ",24470,24470]
[null,null,null,"Sainte-Nathalène ",24471,{"$f":"VLOOKUP(TRIM(D386),communes,2,FALSE)","v":24471}]
[null,null,null,"Sainte-Orse ",24473,24473]
[null,null,null,"Sainte-Radegonde ",24492,24492]
[null,null,null,"Sainte-Sabine-Born ",24497,24497]
[null,null,null,"Saint-Estèphe ",24398,24398]
[null,null,null,"Saint-Étienne-de-Puycorbier ",24399,24399]
[null,null,null,"Sainte-Trie ",24507,24507]
[null,null,null,"Saint-Félix-de-Bourdeilles ",24403,24403]
[null,null,null,"Saint-Félix-de-Reillac-et-Mortemart ",24404,24404]
[null,null,null,"Saint-Félix-de-Villadeix ",24405,24405]
[null,null,null,"Saint-Front-d'Alemps ",24408,24408]
[null,null,null,"Saint-Front-de-Pradoux ",24409,24409]
[null,null,null,"Saint-Front-la-Rivière ",24410,24410]
[null,null,null,"Saint-Front-sur-Nizonne ",24411,24411]
[null,null,null,"Saint-Geniès ",24412,24412]
[null,null,null,"Saint-Georges-Blancaneix ",24413,24413]
[null,null,null,"Saint-Georges-de-Montclard ",24414,24414]
[null,null,null,"Saint-Géraud-de-Corps ",24415,24415]
[null,null,null,"Saint-Germain-de-Belvès ",24416,24416]
[null,null,null,"Saint-Germain-des-Prés ",24417,24417]
[null,null,null,"Saint-Germain-du-Salembre ",24418,24418]
[null,null,null,"Saint-Germain-et-Mons ",24419,24419]
[null,null,null,"Saint-Géry ",24420,24420]
[null,null,null,"Saint-Geyrac ",24421,24421]
[null,null,null,"Saint-Hilaire-d'Estissac ",24422,24422]
[null,null,null,"Saint-Jean-d'Ataux ",24424,24424]
[null,null,null,"Saint-Jean-de-Côle ",24425,24425]
[null,null,null,"Saint-Jean-d'Estissac ",24426,24426]
[null,null,null,"Saint-Jean-d'Eyraud ",24427,24427]
[null,null,null,"Saint-Jory-de-Chalais ",24428,24428]
[null,null,null,"Saint-Jory-las-Bloux ",24429,24429]
[null,null,null,"Saint-Julien-de-Bourdeilles ",24430,24430]
[null,null,null,"Saint-Julien-de-Crempse ",24431,24431]
[null,null,null,"Saint-Julien-de-Lampon ",24432,24432]
[null,null,null,"Saint-Julien-d'Eymet ",24433,24433]
[null,null,null,"Saint-Just ",24434,24434]
[null,null,null,"Saint-Laurent-des-Bâtons ",24435,24435]
[null,null,null,"Saint-Laurent-des-Hommes ",24436,24436]
[null,null,null,"Saint-Laurent-des-Vignes ",24437,24437]
[null,null,null,"Saint-Laurent-la-Vallée ",24438,24438]
[null,null,null,"Saint-Laurent-sur-Manoire ",24439,24439]
[null,null,null,"Saint-Léon-d'Issigeac ",24441,24441]
[null,null,null,"Saint-Léon-sur-l'Isle ",24442,24442]
[null,null,null,"Saint-Léon-sur-Vézère ",24443,24443]
[null,null,null,"Saint-Louis-en-l'Isle ",24444,24444]
[null,null,null,"Saint-Maime-de-Péreyrol ",24459,24459]
[null,null,null,"Saint-Marcel-du-Périgord ",24445,24445]
[null,null,null,"Saint-Marcory ",24446,24446]
[null,null,null,"Saint-Martial-d'Albarède ",24448,24448]
[null,null,null,"Saint-Martial-d'Artenset ",24449,24449]
[null,null,null,"Saint-Martial-de-Nabirat ",24450,24450]
[null,null,null,"Saint-Martial-de-Valette ",24451,24451]
[null,null,null,"Saint-Martial-Viveyrol ",24452,24452]
[null,null,null,"Saint-Martin-de-Fressengeas ",24453,24453]
[null,null,null,"Saint-Martin-de-Gurson ",24454,24454]
[null,null,null,"Saint-Martin-de-Ribérac ",24455,24455]
[null,null,null,"Saint-Martin-des-Combes ",24456,24456]
[null,null,null,"Saint-Martin-l'Astier ",24457,24457]
[null,null,null,"Saint-Martin-le-Pin ",24458,24458]
[null,null,null,"Saint-Méard-de-Drône ",24460,24460]
[null,null,null,"Saint-Méard-de-Gurçon ",24461,24461]
[null,null,null,"Saint-Médard-de-Mussidan ",24462,24462]
[null,null,null,"Saint-Médard-d'Excideuil ",24463,24463]
[null,null,null,"Saint-Mesmin ",24464,24464]
[null,null,null,"Saint-Michel-de-Double ",24465,{"$f":"VLOOKUP(TRIM(D450),communes,2,FALSE)","v":24465}]
[null,null,null,"Saint-Michel-de-Montaigne ",24466,24466]
[null,null,null,"Saint-Michel-de-Villadeix ",24468,24468]
[null,null,null,"Saint-Nexans ",24472,24472]
[null,null,null,"Saint-Pancrace ",24474,24474]
[null,null,null,"Saint-Pantaly-d'Ans ",24475,24475]
[null,null,null,"Saint-Pantaly-d'Excideuil ",24476,24476]
[null,null,null,"Saint-Pardoux-de-Drône ",24477,24477]
[null,null,null,"Saint-Pardoux-et-Vielvic ",24478,24478]
[null,null,null,"Saint-Pardoux-la-Rivière ",24479,24479]
[null,null,null,"Saint-Paul-de-Serre ",24480,24480]
[null,null,null,"Saint-Paul-la-Roche ",24481,24481]
[null,null,null,"Saint-Paul-Lizonne ",24482,24482]
[null,null,null,"Saint-Perdoux ",24483,24483]
[null,null,null,"Saint-Pierre-de-Chignac ",24484,24484]
[null,null,null,"Saint-Pierre-de-Côle ",24485,24485]
[null,null,null,"Saint-Pierre-de-Frugie ",24486,24486]
[null,null,null,"Saint-Pierre-d'Eyraud ",24487,24487]
[null,null,null,"Saint-Pompont ",24488,24488]
[null,null,null,"Saint-Priest-les-Fougères ",24489,24489]
[null,null,null,"Saint-Privat-des-Prés ",24490,24490]
[null,null,null,"Saint-Rabier ",24491,24491]
[null,null,null,"Saint-Raphaël ",24493,24493]
[null,null,null,"Saint-Rémy ",24494,24494]
[null,null,null,"Saint-Romain-de-Monpazier ",24495,24495]
[null,null,null,"Saint-Romain-et-Saint-Clément ",24496,24496]
[null,null,null,"Saint-Saud-Lacoussière ",24498,24498]
[null,null,null,"Saint-Sauveur ",24499,24499]
[null,null,null,"Saint-Sauveur-Lalande ",24500,24500]
[null,null,null,"Saint-Seurin-de-Prats ",24501,24501]
[null,null,null,"Saint-Séverin-d'Estissac ",24502,24502]
[null,null,null,"Saint-Sulpice-de-Mareuil ",24503,24503]
[null,null,null,"Saint-Sulpice-de-Roumagnac ",24504,24504]
[null,null,null,"Saint-Sulpice-d'Excideuil ",24505,24505]
[null,null,null,"Saint-Victor ",24508,24508]
[null,null,null,"Saint-Vincent-de-Connezac ",24509,24509]
[null,null,null,"Saint-Vincent-de-Cosse ",24510,24510]
[null,null,null,"Saint-Vincent-Jalmoutiers ",24511,24511]
[null,null,null,"Saint-Vincent-le-Paluel ",24512,24512]
[null,null,null,"Saint-Vincent-sur-l'Isle ",24513,24513]
[null,null,null,"Saint-Vivien ",24514,24514]
[null,null,null,"Salagnac ",24515,24515]
[null,null,null,"Salignac-Eyvigues ",24516,24516]
[null,null,null,"Salles-de-Belvès ",24517,24517]
[null,null,null,"Salon ",24518,24518]
[null,null,null,"Sarlande ",24519,24519]
[null,null,null,"Sarlat-la-Canéda ",24520,24520]
[null,null,null,"Sarliac-sur-l'Isle",24521,24521]
[null,null,null,"Sarrazac ",24522,24522]
[null,null,null,"Saussignac ",24523,24523]
[null,null,null,"Savignac-de-Miremont ",24524,24524]
[null,null,null,"Savignac-de-Nontron ",24525,24525]
[null,null,null,"Savignac-Lédrier ",24526,24526]
[null,null,null,"Savignac-les-Églises ",24527,24527]
[null,null,null,"Sceau-Saint-Angel ",24528,24528]
[null,null,null,"Segonzac ",24529,24529]
[null,null,null,"Sencenac-Puy-de-Fourches ",24530,24530]
[null,null,null,"Sergeac ",24531,24531]
[null,null,null,"Serres-et-Montguyard ",24532,24532]
[null,null,null,"Servanches ",24533,24533]
[null,null,null,"Sigoulès ",24534,24534]
[null,null,null,"Simeyrols ",24535,24535]
[null,null,null,"Singleyrac ",24536,24536]
[null,null,null,"Siorac-de-Ribérac ",24537,24537]
[null,null,null,"Siorac-en-Périgord ",24538,{"$f":"VLOOKUP(TRIM(D514),communes,2,FALSE)","v":24538}]
[null,null,null,"Sorges ",24540,24540]
[null,null,null,"Soudat ",24541,24541]
[null,null,null,"Soulaures ",24542,24542]
[null,null,null,"Sourzac ",24543,24543]
[null,null,null,"Tamniès ",24544,24544]
[null,null,null,"Teillots ",24545,24545]
[null,null,null,"Temple-Laguyon ",24546,24546]
[null,null,null,"Terrasson-Lavilledieu ",24547,24547]
[null,null,null,"Teyjat ",24548,24548]
[null,null,null,"Thénac ",24549,24549]
[null,null,null,"Thenon ",24550,24550]
[null,null,null,"Thiviers ",24551,24551]
[null,null,null,"Thonac ",24552,24552]
[null,null,null,"Tocane-Saint-Apre ",24553,24553]
[null,null,null,"Tourtoirac ",24555,24555]
[null,null,null,"Trélissac ",24557,24557]
[null,null,null,"Trémolat ",24558,24558]
[null,null,null,"Tursac ",24559,24559]
[null,null,null,"Urval ",24560,24560]
[null,null,null,"Valeuil ",24561,24561]
[null,null,null,"Vallereuil ",24562,24562]
[null,null,null,"Valojoulx ",24563,24563]
[null,null,null,"Vanxains ",24564,24564]
[null,null,null,"Varaignes ",24565,24565]
[null,null,null,"Varennes ",24566,24566]
[null,null,null,"Vaunac ",24567,24567]
[null,null,null,"Vélines ",24568,24568]
[null,null,null,"Vendoire ",24569,24569]
[null,null,null,"Verdon ",24570,24570]
[null,null,null,"Vergt ",24571,24571]
[null,null,null,"Vergt-de-Biron ",24572,24572]
[null,null,null,"Verteillac ",24573,24573]
[null,null,null,"Veyrignac ",24574,24574]
[null,null,null,"Veyrines-de-Domme ",24575,24575]
[null,null,null,"Veyrines-de-Vergt ",24576,24576]
[null,null,null,"Vézac ",24577,24577]
[null,null,null,"Vieux-Mareuil ",24579,24579]
[null,null,null,"Villac ",24580,24580]
[null,null,null,"Villamblard ",24581,24581]
[null,null,null,"Villars ",24582,24582]
[null,null,null,"Villefranche-de-Lonchat ",24584,24584]
[null,null,null,"Villefranche-du-Périgord ",24585,24585]
[null,null,null,"Villetoureix ",24586,24586]
[null,null,null,"Vitrac ",24587,24587]

{"sheet":"CANTONS 1","index":3,"n_rows":558,"n_cols":5,"rows_kept":558,"cut":false,"hidden":false,"merged":[]}
["Numéro Canton","Nom commune","Numéro Commune"]
[2401,"Bayac",24027]
[2401,"Beaumont-du-Périgord",24028]
[2401,"Bourniquel",24060,null,{"$f":"Formulaire!C12","v":""}]
[2401,"Labouquerie",24219,null,{"$f":"OFFSET(communes_par_canton,MATCH(Formulaire!C12,$A$2:$A$558,0)-1,1,COUNTIF($A$2:$A$558,Formulaire!C12),1)","v":{"$error":"#N/A"}}]
[2401,"Monsac",24281]
[2401,"Montferrand-du-Périgord",24290]
[2401,"Naussannes",24307]
[2401,"Nojals-et-Clotte",24310]
[2401,"Rampieux",24347]
[2401,"Saint-Avit-Sénieur",24379]
[2401,"Sainte-Croix-de-Beaumont",24393]
[2401,"Sainte-Sabine-Born",24497]
[2402,"Belvès",24035]
[2402,"Carves",24084]
[2402,"Cladech",24122]
[2402,"Doissat",24151]
[2402,"Grives",24206]
[2402,"Larzac",24230]
[2402,"Monplaisant",24293]
[2402,"Sagelat",24360]
[2402,"Saint-Amand-de-Belvès",24363]
[2402,"Sainte-Foy-de-Belvès",24406]
[2402,"Saint-Germain-de-Belvès",24416]
[2402,"Saint-Pardoux-et-Vielvic",24478]
[2402,"Salles-de-Belvès",24517]
[2402,"Siorac-en-Périgord",24538]
[2403,"Bergerac",24037]
[2404,"Agonac",24002]
[2404,"Biras",24042]
[2404,"Bourdeilles",24055]
[2404,"Brantôme",24064]
[2404,"Bussac",24069]
[2404,"Eyvirat",24170]
[2404,"Lisle",24243]
[2404,"Saint-Front-d'Alemps",24408]
[2404,"Saint-Julien-de-Bourdeilles",24430]
[2404,"Sencenac-Puy-de-Fourches",24530]
[2404,"Valeuil",24561]
[2405,"Campagne",24076]
[2405,"Fleurac",24183]
[2405,"Journiac",24217]
[2405,"Le Bugue",24067]
[2405,"Manaurie",24249]
[2405,"Mauzens-et-Miremont",24261]
[2405,"Saint-Avit-de-Vialard",24377]
[2405,"Saint-Cirq",24389]
[2405,"Saint-Félix-de-Reillac-et-Mortemart",24404]
[2405,"Savignac-de-Miremont",24524]
[2406,"Busserolles",24070]
[2406,"Bussière-Badil",24071]
[2406,"Champniers-et-Reilhac",24100]
[2406,"Étouars",24163]
[2406,"Piégut-Pluviers",24328]
[2406,"Saint-Barthélemy-de-Bussière",24381]
[2406,"Soudat",24541]
[2406,"Varaignes",24565]
[2407,"Alles-sur-Dordogne",24005]
[2407,"Badefols-sur-Dordogne",24022]
[2407,"Bouillac",24052]
[2407,"Calès",24073]
[2407,"Le Buisson-de-Cadouin",24068]
[2407,"Molières",24273]
[2407,"Pontours",24334]
[2407,"Urval",24560]
[2408,"Calviac-en-Périgord",24074]
[2408,"Carlux",24081]
[2408,"Carsac-Aillac",24082]
[2408,"Cazoulès",24089]
[2408,"Orliaguet",24314]
[2408,"Peyrillac-et-Millac",24325]
[2408,"Prats-de-Carlux",24336]
[2408,"Sainte-Mondane",24470]
[2408,"Saint-Julien-de-Lampon",24432]
[2408,"Simeyrols",24535]
[2408,"Veyrignac",24574]
[2409,"Cantillac",24079]
[2409,"Champagnac-de-Belair",24096]
[2409,"Condat-sur-Trincou",24129]
[2409,"La Chapelle-Faucher",24107]
[2409,"La Chapelle-Montmoreau",24111]
[2409,"La Gonterie-Boulouneix",24198]
[2409,"Quinsac",24346]
[2409,"Saint-Pancrace",24474]
[2409,"Villars",24582]
[2410,"Bouzic",24063]
[2410,"Castelnaud-la-Chapelle",24086]
[2410,"Cénac-et-Saint-Julien",24091]
[2410,"Daglan",24150]
[2410,"Domme",24152]
[2410,"Florimont-Gaumier",24184]
[2410,"Groléjac",24207]
[2410,"Nabirat",24300]
[2410,"Saint-Aubin-de-Nabirat",24375]
[2410,"Saint-Cybranet",24395]
[2410,"Saint-Laurent-la-Vallée",24438]
[2410,"Saint-Martial-de-Nabirat",24450]
[2410,"Saint-Pompont",24488]
[2410,"Veyrines-de-Domme",24575]
[2411,"Anlhiac",24009]
[2411,"Clermont-d'Excideuil",24124]
[2411,"Excideuil",24164]
[2411,"Génis",24196]
[2411,"Preyssac-d'Excideuil",24339]
[2411,"Sainte-Trie",24507]
[2411,"Saint-Germain-des-Prés",24417]
[2411,"Saint-Jory-las-Bloux",24429]
[2411,"Saint-Martial-d'Albarède",24448]
[2411,"Saint-Médard-d'Excideuil",24463]
[2411,"Saint-Mesmin",24464]
[2411,"Saint-Pantaly-d'Excideuil",24476]
[2411,"Saint-Raphaël",24493]
[2411,"Salagnac",24515]
[2412,"Eymet",24167]
[2412,"Fonroque",24186]
[2412,"Razac-d'Eymet",24348]
[2412,"Sadillac",24359]
[2412,"Saint-Aubin-de-Cadelech",24373]
[2412,"Saint-Capraise-d'Eymet",24383]
[2412,"Sainte-Eulalie-d'Eymet",24402]
[2412,"Sainte-Innocence",24423]
[2412,"Saint-Julien-d'Eymet",24433]
[2412,"Serres-et-Montguyard",24532]
[2412,"Singleyrac",24536]
[2413,"Badefols-d'Ans",24021]
[2413,"Boisseuilh",24046]
[2413,"Cherveix-Cubas",24120]
[2413,"Chourgnac",24121]
[2413,"Coubjours",24136]
[2413,"Granges-d'Ans",24202]
[2413,"Hautefort",24210]
[2413,"La Chapelle-Saint-Jean",24113]
[2413,"Nailhac",24302]
[2413,"Sainte-Eulalie-d'Ans",24401]
[2413,"Teillots",24545]
[2413,"Temple-Laguyon",24546]
[2413,"Tourtoirac",24555]
[2414,"Bardou",24024]
[2414,"Boisse",24045]
[2414,"Bouniagues",24054]
[2414,"Colombier",24126]
[2414,"Conne-de-Labarde",24132]
[2414,"Faurilles",24176]
[2414,"Faux",24177]
[2414,"Issigeac",24212]
[2414,"Monmadalès",24278]
[2414,"Monmarvès",24279]
[2414,"Monsaguel",24282]
[2414,"Montaut",24287]
[2414,"Plaisance",24168]
[2414,"Saint-Aubin-de-Lanquais",24374]
[2414,"Saint-Cernin-de-Labarde",24385]
[2414,"Sainte-Radegonde",24492]
[2414,"Saint-Léon-d'Issigeac",24441]
[2414,"Saint-Perdoux",24483]
[2415,"Chalais",24095]
[2415,"Jumilhac-le-Grand",24218]
[2415,"La Coquille",24133]
[2415,"Saint-Jory-de-Chalais",24428]
[2415,"Saint-Paul-la-Roche",24481]
[2415,"Saint-Pierre-de-Frugie",24486]
[2415,"Saint-Priest-les-Fougères",24489]
[2416,"Bosset",24051]
[2416,"Fraisse",24191]
[2416,"Ginestet",24197]
[2416,"La Force",24222]
[2416,"Lavaur",24232]
[2416,"Le Fleix",24182]
[2416,"Lunas",24246]
[2416,"Monfaucon",24277]
[2416,"Prigonrieux",24340]
[2416,"Saint-Georges-Blancaneix",24413]
[2416,"Saint-Géry",24420]
[2416,"Saint-Pierre-d'Eyraud",24487]
[2417,"Baneuil",24023]
[2417,"Cause-de-Clérans",24088]
[2417,"Couze-et-Saint-Front",24143]
[2417,"Lalinde",24223]
[2417,"Lanquais",24228]
[2417,"Liorac-sur-Louyre",24242]
[2417,"Mauzac-et-Grand-Castang",24260]
[2417,"Pressignac-Vicq",24338]
[2417,"Saint-Agne",24361]
[2417,"Saint-Capraise-de-Lalinde",24382]
[2417,"Saint-Félix-de-Villadeix",24405]
[2417,"Saint-Marcel-du-Périgord",24445]
[2417,"Varennes",24566]
[2417,"Verdon",24570]
[2418,"Angoisse",24008]
[2418,"Dussac",24158]
[2418,"Lanouaille",24227]
[2418,"Nanthiat",24305]
[2418,"Payzac",24320]
[2418,"Saint-Cyr-les-Champagnes",24397]
[2418,"Saint-Sulpice-d'Excideuil",24505]
[2418,"Sarlande",24519]
[2418,"Sarrazac",24522]
[2418,"Savignac-Lédrier",24526]
[2419,"Beaussac",24033]
[2419,"Champeaux-et-la-Chapelle-Pommier",24099]
[2419,"La Rochebeaucourt-et-Argentine",24353]
[2419,"Léguillac-de-Cercles",24235]
[2419,"Les Graulges",24203]
[2419,"Mareuil",24253]
[2419,"Monsec",24283]
[2419,"Puyrenier",24344]
[2419,"Rudeau-Ladosse",24221]
[2419,"Saint-Crépin-de-Richemont",24391]
[2419,"Sainte-Croix-de-Mareuil",24394]
[2419,"Saint-Félix-de-Bourdeilles",24403]
[2419,"Saint-Sulpice-de-Mareuil",24503]
[2419,"Vieux-Mareuil",24579]
[2420,"Biron",24043]
[2420,"Capdrot",24080]
[2420,"Gaugeac",24195]
[2420,"Lavalade",24231]
[2420,"Lolme",24244]
[2420,"Marsalès",24257]
[2420,"Monpazier",24280]
[2420,"Saint-Avit-Rivière",24378]
[2420,"Saint-Cassien",24384]
[2420,"Saint-Marcory",24446]
[2420,"Saint-Romain-de-Monpazier",24495]
[2420,"Soulaures",24542]
[2420,"Vergt-de-Biron",24572]
[2421,"Celles",24090]
[2421,"Chapdeuil",24105]
[2421,"Creyssac",24144]
[2421,"Douchapt",24154]
[2421,"Grand-Brassac",24200]
[2421,"Montagrier",24286]
[2421,"Paussac-et-Saint-Vivien",24319]
[2421,"Saint-Just",24434]
[2421,"Saint-Victor",24508]
[2421,"Segonzac",24529]
[2421,"Tocane-Saint-Apre",24553]
[2422,"Aubas",24014]
[2422,"Auriac-du-Périgord",24018]
[2422,"Fanlac",24174]
[2422,"La Chapelle-Aubareil",24106]
[2422,"Les Farges",24175]
[2422,"Montignac",24291]
[2422,"Peyzac-le-Moustier",24326]
[2422,"Plazac",24330]
[2422,"Rouffignac-Saint-Cernin-de-Reilhac",24356]
[2422,"Saint-Amand-de-Coly",24364]
[2422,"Saint-Léon-sur-Vézère",24443]
[2422,"Sergeac",24531]
[2422,"Thonac",24552]
[2422,"Valojoulx",24563]
[2423,"Échourgnac",24159]
[2423,"Eygurande-et-Gardedeuil",24165]
[2423,"Le Pizou",24329]
[2423,"Ménesplet",24264]
[2423,"Montpon-Ménestérol",24294]
[2423,"Saint-Barthélemy-de-Bellegarde",24380]
[2423,"Saint-Martial-d'Artenset",24449]
[2423,"Saint-Sauveur-Lalande",24500]
[2424,"Beaupouyet",24029]
[2424,"Bourgnac",24059]
[2424,"Mussidan",24299]
[2424,"Saint-Étienne-de-Puycorbier",24399]
[2424,"Saint-Front-de-Pradoux",24409]
[2424,"Saint-Laurent-des-Hommes",24436]
[2424,"Saint-Louis-en-l'Isle",24444]
[2424,"Saint-Martin-l'Astier",24457]
[2424,"Saint-Médard-de-Mussidan",24462]
[2424,"Saint-Michel-de-Double",24465]
[2424,"Sourzac",24543]
[2425,"Beauronne",24032]
[2425,"Chantérac",24104]
[2425,"Douzillac",24157]
[2425,"Neuvic",24309]
[2425,"Saint-André-de-Double",24367]
[2425,"Saint-Aquilin",24371]
[2425,"Saint-Germain-du-Salembre",24418]
[2425,"Saint-Jean-d'Ataux",24424]
[2425,"Saint-Séverin-d'Estissac",24502]
[2425,"Saint-Vincent-de-Connezac",24509]
[2425,"Vallereuil",24562]
[2426,"Abjat-sur-Bandiat",24001]
[2426,"Augignac",24016]
[2426,"Connezac",24131]
[2426,"Hautefaye",24209]
[2426,"Javerlhac-et-la-Chapelle-Saint-Robert",24214]
[2426,"Le Bourdeix",24056]
[2426,"Lussas-et-Nontronneau",24248]
[2426,"Nontron",24311]
[2426,"Saint-Estèphe",24398]
[2426,"Saint-Front-sur-Nizonne",24411]
[2426,"Saint-Martial-de-Valette",24451]
[2426,"Saint-Martin-le-Pin",24458]
[2426,"Savignac-de-Nontron",24525]
[2426,"Sceau-Saint-Angel",24528]
[2426,"Teyjat",24548]
[2427,"Périgueux",24322]
[2428,"Allemans",24007]
[2428,"Bourg-du-Bost",24058]
[2428,"Chassaignes",24114]
[2428,"Comberanche-et-Épeluche",24128]
[2428,"Petit-Bersac",24323]
[2428,"Ribérac",24352]
[2428,"Saint-Martin-de-Ribérac",24455]
[2428,"Saint-Méard-de-Drône",24460]
[2428,"Saint-Pardoux-de-Drône",24477]
[2428,"Saint-Sulpice-de-Roumagnac",24504]
[2428,"Siorac-de-Ribérac",24537]
[2428,"Vanxains",24564]
[2428,"Villetoureix",24586]
[2429,"Limeuil",24240]
[2429,"Paunat",24318]
[2429,"Pezuls",24327]
[2429,"Sainte-Alvère",24362]
[2429,"Sainte-Foy-de-Longas",24407]
[2429,"Saint-Laurent-des-Bâtons",24435]
[2429,"Trémolat",24558]
[2430,"Annesse-et-Beaulieu",24010]
[2430,"Coursac",24139]
[2430,"Grignols",24205]
[2430,"Jaure",24213]
[2430,"La Chapelle-Gonaguet",24108]
[2430,"Léguillac-de-l'Auche",24236]
[2430,"Manzac-sur-Vern",24251]
[2430,"Mensignac",24266]
[2430,"Montrem",24295]
[2430,"Razac-sur-l'Isle",24350]
[2430,"Saint-Astier",24372]
[2430,"Saint-Léon-sur-l'Isle",24442]
[2431,"Chenaud",24118]
[2431,"Festalemps",24178]
[2431,"La Jemaye",24216]
[2431,"La Roche-Chalais",24354]
[2431,"Parcoul",24316]
[2431,"Ponteyraud",24333]
[2431,"Puymangou",24343]
[2431,"Saint-Antoine-Cumond",24368]
[2431,"Saint-Aulaye",24376]
[2431,"Saint-Privat-des-Prés",24490]
[2431,"Saint-Vincent-Jalmoutiers",24511]
[2431,"Servanches",24533]
[2432,"Allas-les-Mines",24006]
[2432,"Audrix",24015]
[2432,"Berbiguières",24036]
[2432,"Bézenac",24041]
[2432,"Castels",24087]
[2432,"Coux-et-Bigaroque",24142]
[2432,"Les Eyzies-de-Tayac-Sireuil",24172]
[2432,"Marnac",24254]
[2432,"Meyrals",24268]
[2432,"Mouzens",24298]
[2432,"Saint-Chamassy",24388]
[2432,"Saint-Cyprien",24396]
[2432,"Saint-Vincent-de-Cosse",24510]
[2432,"Tursac",24559]
[2433,"Champs-Romain",24101]
[2433,"Firbeix",24180]
[2433,"Mialet",24269]
[2433,"Milhac-de-Nontron",24271]
[2433,"Saint-Front-la-Rivière",24410]
[2433,"Saint-Pardoux-la-Rivière",24479]
[2433,"Saint-Saud-Lacoussière",24498]
[2434,"Atur",24013]
[2434,"Bassillac",24026]
[2434,"Blis-et-Born",24044]
[2434,"Boulazac",24053]
[2434,"Eyliac",24166]
[2434,"La Douze",24156]
[2434,"Marsaneix",24258]
[2434,"Milhac-d'Auberoche",24270]
[2434,"Notre-Dame-de-Sanilhac",24312]
[2434,"Saint-Antoine-d'Auberoche",24369]
[2434,"Saint-Crépin-d'Auberoche",24390]
[2434,"Sainte-Marie-de-Chignac",24447]
[2434,"Saint-Geyrac",24421]
[2434,"Saint-Laurent-sur-Manoire",24439]
[2434,"Saint-Pierre-de-Chignac",24484]
[2435,"Archignac",24012]
[2435,"Borrèze",24050]
[2435,"Jayac",24215]
[2435,"Nadaillac",24301]
[2435,"Paulin",24317]
[2435,"Saint-Crépin-et-Carlucet",24392]
[2435,"Saint-Geniès",24412]
[2435,"Salignac-Eyvigues",24516]
[2436,"Beynac-et-Cazenac",24040]
[2436,"La Roque-Gageac",24355]
[2436,"Marcillac-Saint-Quentin",24252]
[2436,"Marquay",24255]
[2436,"Proissans",24341]
[2436,"Saint-André-d'Allas",24366]
[2436,"Sainte-Nathalène",24471]
[2436,"Saint-Vincent-le-Paluel",24512]
[2436,"Sarlat-la-Canéda",24520]
[2436,"Tamniès",24544]
[2436,"Vézac",24577]
[2436,"Vitrac",24587]
[2437,"Antonne-et-Trigonant",24011]
[2437,"Cornille",24135]
[2437,"Coulaures",24137]
[2437,"Cubjac",24147]
[2437,"Escoire",24162]
[2437,"Le Change",24103]
[2437,"Ligueux",24239]
[2437,"Mayac",24262]
[2437,"Négrondes",24308]
[2437,"Saint-Pantaly-d'Ans",24475]
[2437,"Saint-Vincent-sur-l'Isle",24513]
[2437,"Sarliac-sur-l'Isle",24521]
[2437,"Savignac-les-Églises",24527]
[2437,"Sorges",24540]
[2438,"Cunèges",24148]
[2438,"Flaugeac",24181]
[2438,"Gageac-et-Rouillac",24193]
[2438,"Gardonne",24194]
[2438,"Lamonzie-Saint-Martin",24225]
[2438,"Mescoules",24267]
[2438,"Monbazillac",24274]
[2438,"Monestier",24276]
[2438,"Pomport",24331]
[2438,"Razac-de-Saussignac",24349]
[2438,"Ribagnac",24351]
[2438,"Rouffignac-de-Sigoulès",24357]
[2438,"Saussignac",24523]
[2438,"Sigoulès",24534]
[2438,"Thénac",24549]
[2439,"Beauregard-de-Terrasson",24030]
[2439,"Châtres",24116]
[2439,"Chavagnac",24117]
[2439,"Coly",24127]
[2439,"Condat-sur-Vézère",24130]
[2439,"Grèzes",24204]
[2439,"La Bachellerie",24020]
[2439,"La Cassagne",24085]
[2439,"La Dornac",24153]
[2439,"La Feuillade",24179]
[2439,"Le Lardin-Saint-Lazare",24229]
[2439,"Pazayac",24321]
[2439,"Peyrignac",24324]
[2439,"Saint-Rabier",24491]
[2439,"Terrasson-Lavilledieu",24547]
[2439,"Villac",24580]
[2440,"Ajat",24004]
[2440,"Azerat",24019]
[2440,"Bars",24025]
[2440,"Brouchaud",24066]
[2440,"Fossemagne",24188]
[2440,"Gabillou",24192]
[2440,"La Boissière-d'Ans",24047]
[2440,"Limeyrat",24241]
[2440,"Montagnac-d'Auberoche",24284]
[2440,"Sainte-Orse",24473]
[2440,"Thenon",24550]
[2441,"Corgnac-sur-l'Isle",24134]
[2441,"Eyzerac",24171]
[2441,"Lempzours",24238]
[2441,"Nantheuil",24304]
[2441,"Saint-Jean-de-Côle",24425]
[2441,"Saint-Martin-de-Fressengeas",24453]
[2441,"Saint-Pierre-de-Côle",24485]
[2441,"Saint-Romain-et-Saint-Clément",24496]
[2441,"Thiviers",24551]
[2441,"Vaunac",24567]
[2442,"Bonneville-et-St-Avit-de-Fumadières",24048]
[2442,"Fougueyrolles",24189]
[2442,"Lamothe-Montravel",24226]
[2442,"Montazeau",24288]
[2442,"Montcaret",24289]
[2442,"Nastringues",24306]
[2442,"Port-Sainte-Foy-et-Ponchapt",24335]
[2442,"Saint-Antoine-de-Breuilh",24370]
[2442,"Saint-Michel-de-Montaigne",24466]
[2442,"Saint-Seurin-de-Prats",24501]
[2442,"Saint-Vivien",24514]
[2442,"Vélines",24568]
[2443,"Bourrou",24061]
[2443,"Breuilh",24065]
[2443,"Cendrieux",24092]
[2443,"Chalagnac",24094]
[2443,"Creyssensac-et-Pissot",24146]
[2443,"Église-Neuve-de-Vergt",24160]
[2443,"Fouleix",24190]
[2443,"Grun-Bordas",24208]
[2443,"Lacropte",24220]
[2443,"Saint-Amand-de-Vergt",24365]
[2443,"Saint-Maime-de-Péreyrol",24459]
[2443,"Saint-Michel-de-Villadeix",24468]
[2443,"Saint-Paul-de-Serre",24480]
[2443,"Salon",24518]
[2443,"Vergt",24571]
[2443,"Veyrines-de-Vergt",24576]
[2444,"Bertric-Burée",24038]
[2444,"Bourg-des-Maisons",24057]
[2444,"Bouteilles-Saint-Sébastien",24062]
[2444,"Cercles",24090]
[2444,"Champagne-et-Fontaine",24097]
[2444,"Cherval",24119]
[2444,"Coutures",24141]
[2444,"Gout-Rossignol",24199]
[2444,"La Chapelle-Grésignac",24109]
[2444,"La Chapelle-Montabourlet",24110]
[2444,"La Tour-Blanche",24554]
[2444,"Lusignac",24247]
[2444,"Nanteuil-Auriac-de-Bourzac",24303]
[2444,"Saint-Martial-Viveyrol",24452]
[2444,"Saint-Paul-Lizonne",24482]
[2444,"Vendoire",24569]
[2444,"Verteillac",24573]
[2445,"Beauregard-et-Bassac",24031]
[2445,"Beleymas",24034]
[2445,"Campsegret",24077]
[2445,"Clermont-de-Beauregard",24123]
[2445,"Douville",24155]
[2445,"Église-Neuve-d'Issac",24161]
[2445,"Issac",24211]
[2445,"Laveyssière",24233]
[2445,"Maurens",24259]
[2445,"Montagnac-la-Crempse",24285]
[2445,"Saint-Georges-de-Montclard",24414]
[2445,"Saint-Hilaire-d'Estissac",24422]
[2445,"Saint-Jean-d'Estissac",24426]
[2445,"Saint-Jean-d'Eyraud",24427]
[2445,"Saint-Julien-de-Crempse",24431]
[2445,"Saint-Martin-des-Combes",24456]
[2445,"Villamblard",24581]
[2446,"Carsac-de-Gurson",24083]
[2446,"Minzac",24272]
[2446,"Montpeyroux",24292]
[2446,"Moulin-Neuf",24297]
[2446,"Saint-Géraud-de-Corps",24415]
[2446,"Saint-Martin-de-Gurson",24454]
[2446,"Saint-Méard-de-Gurçon",24461]
[2446,"Saint-Rémy",24494]
[2446,"Villefranche-de-Lonchat",24584]
[2447,"Besse",24039]
[2447,"Campagnac-lès-Quercy",24075]
[2447,"Lavaur",24232]
[2447,"Loubejac",24245]
[2447,"Mazeyrolles",24263]
[2447,"Orliac",24313]
[2447,"Prats-du-Périgord",24337]
[2447,"Saint-Cernin-de-l'Herm",24386]
[2447,"Villefranche-du-Périgord",24585]
[2448,"Cours-de-Pile",24140]
[2448,"Creysse",24145]
[2448,"Lamonzie-Montastruc",24224]
[2448,"Lembras",24237]
[2448,"Mouleydier",24296]
[2448,"Queyssac",24345]
[2448,"Saint-Germain-et-Mons",24419]
[2448,"Saint-Laurent-des-Vignes",24437]
[2448,"Saint-Nexans",24472]
[2448,"Saint-Sauveur",24499]
[2449,"Champcevinel",24098]
[2449,"Château-l'Évêque",24115]
[2449,"Trélissac",24557]
[2450,"Chancelade",24102]
[2450,"Coulounieix-Chamiers",24138]
[2450,"Marsac-sur-l'Isle",24256]